Cogmind - Beta 13 X2 @@@ ROGUE MODE // 2023.12.22 @ 17:21:09 Player: alice_fexa Result: Destroyed by US-ZLL(R) with Subdweller Shrapnel Launcher Performance ------------- Evolutions (0) 0 Regions Visited (2) 400 Robots Destroyed (24) 120 Value Destroyed (602) 602 Prototype IDs (10) 200 Alien Tech Used (0) 0 Bonus (0) 0 TOTAL SCORE: 1322 Bonus ------- None Cogmind --------- Core Integrity 0/250 Matter 300/300 Energy 250/250 System Corruption 0% Temperature Cool (0) Movement Rolling (125) Ox3 Location -10/Subcaves Parts ------- > --- POWER (1+3) ------ Ion Engine > --- PROPULSION (2) --- Light Treads Wheel > --- UTILITY (2) ------ Large Storage Unit Power Bank > --- WEAPON (2) ------- Subdweller Beam Cannon Barrage Gun > --- INVENTORY (15) --- Ion Engine Heat Sink Disposable Heat Sink Machine Analyzer Makeshift Kinetic Plating Makeshift Kinetic Plating Particle Gun Subdweller Beam Cannon Subdweller Beam Cannon Battle Rifle Subdweller Machine Gun Battle Cannon Grenade Launcher Subdweller Shrapnel Launcher Botcube Peak State ------------ > --- POWER ------------ Ion Engine > --- PROPULSION ------- Light Treads Subdweller Monowheel > --- UTILITY ---------- Large Storage Unit Power Bank > --- WEAPON ----------- Subdweller Beam Cannon Barrage Gun > --- INVENTORY -------- Ion Engine Heat Sink Disposable Heat Sink Machine Analyzer Makeshift Kinetic Plating Particle Gun Subdweller Beam Cannon Subdweller Beam Cannon Battle Rifle Subdweller Machine Gun Battle Cannon Grenade Launcher Grenade Launcher Subdweller Shrapnel Launcher Botcube [Rating: 22] Favorites ----------- Power Ion Engine Engine Ion Engine Power Core Light Nuclear Core Propulsion Light Treads Treads Light Treads Wheel Subdweller Monowheel Utility Large Storage Unit Device Heat Sink Storage Large Storage Unit Protection Makeshift Kinetic Plating Weapon Light Assault Rifle Energy Gun Particle Gun Energy Cannon Beam Cannon Ballistic Gun Light Assault Rifle Ballistic Cannon Battle Cannon Launcher Grenade Launcher Build | -11 -10 -10 ------- Run | Yrd Mat Sub Slots Evolved . | . . . Power . | . . . Propulsion . | . . . Utility . | . . . Weapon . | . . . Parts Attached 33 | 6 10 17 Power 3 | 1 . 2 Engine 2 | 1 . 1 Core 1 | . . 1 Reactor . | . . . Propulsion 10 | 2 2 6 Treads 5 | 1 1 3 Leg . | . . . Wheel 5 | 1 1 3 Hover . | . . . Flight . | . . . Utility 7 | 1 4 2 Device 4 | . 3 1 Storage 2 | 1 1 . Processor . | . . . Hackware . | . . . Protection 1 | . . 1 Artifact . | . . . Weapon 13 | 2 4 7 Energy Gun 1 | . . 1 Energy Cannon 3 | . . 3 Ballistic Gun 5 | 2 2 1 Ballistic Cannon 1 | . . 1 Launcher 3 | . 2 1 Special Weapon . | . . . Impact Weapon . | . . . Slashing Weapon . | . . . Piercing Weapon . | . . . Special Melee Weapon . | . . . Unidentified Prototypes . | . . . Parts Lost 3 | . 1 2 Power 1 | . . 1 Propulsion 1 | . . 1 Utility 1 | . 1 . Weapon . | . . . Highest Loss Streak 2 | . 1 2 To Critical Strikes . | . . . Average Slot Usage (%) 96 | . 94 98 Engine 13 | . 14 12 Treads 22 | . 22 21 Wheel 5 | . 5 5 Device 6 | . 8 3 Storage 13 | . 14 13 Protection 5 | . . 10 Energy Gun 1 | . . 3 Energy Cannon 5 | . . 10 Ballistic Gun 17 | . 27 7 Ballistic Cannon 1 | . . 3 Launcher 1 | . . 2 Naked Turns . | . . . Heaviest Build 43 | 12 28 43 Greatest Support 40 | 16 40 40 Greatest Overweight (x) 3 | . . 3 Average Overweight (x) . | . . . Largest Inventory Capacity 15 | 8 15 15 Average Capacity 12 | 7 9 15 Most Carried 15 | 4 15 15 Average Carried 11 | 2 9 14 Final Capacity 15 | 8 15 15 Final Carried 15 | 4 15 15 Class Distribution -------------------- 100% | Mutant Dominant Class ---------------- Mutant | -10/Materials Mutant | -10/Subcaves Resources | -11 -10 -10 ----------- Run | Yrd Mat Sub Matter Collected 857 | 225 254 378 Remotely . | . . . Salvage Created 617 | . 426 191 Parts 47 | . 33 14 Haulers Intercepted 1 | . 1 . Recyclers Shooed 3 | . 3 . Parts Field Recycled . | . . . Retrieved Matter . | . . . Parts Self-Destructed 1 | . . 1 Prevented . | . . . Kills | -11 -10 -10 ------- Run | Yrd Mat Sub Combat Hostiles Destroyed 21 | . 13 8 Guns 9 | . 9 . Cannons 6 | . . 6 AOE 6 | . 4 2 Classes Destroyed 6 | . 5 1 Hauler 1 | . 1 . Mechanic 1 | . 1 . Watcher 1 | . 1 . Swarmer 8 | . 6 2 Grunt 7 | . 7 . Subdweller 6 | . . 6 Best Kill Streak 5 | . 5 2 Combat Bots Only 4 | . 4 2 Max Kills in Single Turn 3 | . 3 1 Gunslinging . | . . . Exploded 2 | . 2 1 Melee . | . . . Uniques/NPCs Destroyed . | . . . Combat | -11 -10 -10 -------- Run | Yrd Mat Sub Hostile Shots Fired 94 | . 57 37 Missed 22 | . 12 10 Damage Taken 1061 | . 479 582 Core 252 | . 145 107 Absorbed by Shields . | . . . Ignored by Resistances 27 | . . 27 Core Remaining (%) 100 | 100 . . Volleys Fired 99 | . 56 43 Largest 2 | . 2 2 Hottest 108 | . 40 108 Shots Fired 169 | . 109 60 Gun 110 | . 106 4 Cannon 53 | . . 53 Launcher 6 | . 3 3 Special . | . . . Kinetic 142 | . 106 36 Thermal 21 | . . 21 Explosive 6 | . 3 3 Electromagnetic . | . . . Robot Hit Streak 10 | . 9 10 Robot Miss Streak 3 | . 3 2 Penetration Max . | . . . Secondary Targets 1 | . 1 . Max Gunslinging Chain 1 | . 1 . Shots Hit Robots 95 | . 68 27 Core Hits 44 | . 32 12 Critical Kills . | . . . Critical Parts Destroyed . | . . . Critical Strikes . | . . . Melee Attacks . | . . . Impact . | . . . Slashing . | . . . Piercing . | . . . Sneak Attacks . | . . . Combat Hostiles . | . . . Follow-up Attacks . | . . . Damage Inflicted 1411 | . 807 604 Guns 553 | . 522 31 Cannons 462 | . . 462 Explosions 396 | . 285 111 Melee . | . . . Ramming . | . . . Kinetic 774 | . 522 252 Thermal 241 | . . 241 Explosive 396 | . 285 111 Electromagnetic . | . . . Impact . | . . . Slashing . | . . . Piercing . | . . . Highest Corruption . | . . . Average Corruption . | . . . Corruption Purged . | . . . Corruption Blocked . | . . . Overload Shots . | . . . Overflow Damage 5 | . . 5 Projectiles . | . . . Explosions 5 | . . 5 Melee . | . . . Knockbacks 1 | . . 1 Impact . | . . . Kinetic 1 | . . 1 Secondary . | . . . Self-Inflicted Damage . | . . . Shots . | . . . Rammed . | . . . Targets Rammed . | . . . Kicked . | . . . Crushed . | . . . Highest Temperature 289 | . 32 289 Average Temperature 49 | . 12 87 Received Heat Transfer 577 | . 195 382 Siege Activations . | . . . Robots Corrupted . | . . . Combat Hostiles . | . . . Parts Fried . | . . . Impact Corruptions . | . . . Robots Melted . | . . . Combat Hostiles . | . . . Parts Melted 3 | . . 3 Heat Transferred 481 | . . 481 Parts Sabotaged . | . . . Parts Stolen . | . . . Parts Stripped . | . . . Power Chain Reactions . | . . . Missiles Intercepted . | . . . Alert | -11 -10 -10 ------- Run | Yrd Mat Sub Peak Influence 153 | . 153 . Initial . | . . . Average 50 | . 52 . Maximum Alert Level . | . . . Low Security (%) 100 | 100 100 . Level 1 . | . . . Level 2 . | . . . Level 3 . | . . . Level 4 . | . . . Level 5 . | . . . High Security . | . . . Max Security . | . . . Squads Dispatched 3 | . 3 . Investigation 2 | . 2 . Extermination . | . . . Reinforcement 1 | . 1 . Assault . | . . . Garrison . | . . . Intercept . | . . . Searches Triggered . | . . . Construction Impeded . | . . . Haulers Reinforced . | . . . Active Scanning Responses . | . . . Cargo Convoy Interrupts . | . . . Stealth | -11 -10 -10 --------- Run | Yrd Mat Sub Distress Signals 2 | . 2 . Communications Jammed . | . . . Distress Signals . | . . . Times Spotted 35 | . 26 9 Peak Tracking Total 5 | . 5 2 Tactical Retreats 1 | . 1 . Traps | -11 -10 -10 ------- Run | Yrd Mat Sub Traps Triggered 2 | . 2 . Indirectly . | . . . Trap Hack Attempts . | . . . Triggered . | . . . Disarmed . | . . . Reprogrammed . | . . . Reused . | . . . Traps Extracted . | . . . Installed . | . . . Triggered . | . . . Machines | -11 -10 -10 ---------- Run | Yrd Mat Sub Machines Disabled 1 | . . 1 Max in Single Turn 1 | . . 1 Machines Repaired . | . . . Machines Dismantled . | . . . Machines Sabotaged . | . . . Overloaded Fab Kills . | . . . Hacking | -11 -10 -10 --------- Run | Yrd Mat Sub Machines Accessed 8 | . 7 1 Terminals 7 | . 7 . Fabricators . | . . . Repair Stations . | . . . Recycling Units . | . . . Scanalyzers . | . . . Garrison Access . | . . . Total Hacks 19 | . 18 1 Successful 9 | . 8 1 Failed 10 | . 10 . Catastrophic . | . . . Database Lockouts . | . . . Manual 11 | . 11 . Terminals 18 | . 18 . Fabricators . | . . . Repair Stations . | . . . Recycling Units . | . . . Scanalyzers . | . . . Garrison Access . | . . . Terminal Hacks 8 | . 7 1 Unreport Threat 2 | . 2 . Locate Traps 3 | . 3 . Zone Layout 2 | . 2 . Derelict Proto ID Bank 1 | . . 1 Fabricator Hacks . | . . . Repair Station Hacks . | . . . Recycling Unit Hacks . | . . . Scanalyzer . | . . . Garrison Access Hacks . | . . . Unauthorized Hacks 1 | . 1 . Terminals 1 | . 1 . Botnet 1 | . 1 . Fabricators . | . . . Repair Stations . | . . . Recycling Units . | . . . Scanalyzers . | . . . Garrison Access . | . . . Data Cores Recovered . | . . . Used . | . . . Hacking Detections 7 | . 7 . Full Trace Events . | . . . Feedback Events . | . . . Feedback Blocked . | . . . Robot Schematics Acquired . | . . . Robots Built . | . . . Authchips . | . . . Time . | . . . Total Robot Build Rating . | . . . Part Schematics Acquired . | . . . Parts Built . | . . . Authchips . | . . . Time . | . . . Total Part Build Rating . | . . . Parts Repaired . | . . . Time . | . . . Parts Recycled . | . . . Recycled Matter . | . . . Retrieved Matter . | . . . Retrieved Components . | . . . Parts Scanalyzed . | . . . Part Schematics Acquired . | . . . Parts Damaged . | . . . Bothacking | -11 -10 -10 ------------ Run | Yrd Mat Sub Used RIF Installer . | . . . Robots Hacked . | . . . Non-combat . | . . . Combat . | . . . Robot Hacks Applied . | . . . Relay Couplers Released . | . . . Fabnet Peak Effective % . | . . . Robots Rewired . | . . . Allies Hacked . | . . . Hacks Repelled . | . . . Allies | -11 -10 -10 -------- Run | Yrd Mat Sub Total Allies . | . . . Largest Group . | . . . Highest-Rated Group . | . . . Highest-Rated Ally . | . . . Total Orders . | . . . Ally Attacks . | . . . Total Damage . | . . . Kills . | . . . Allies Corrupted . | . . . Allies Melted . | . . . Intel | -11 -10 -10 ------- Run | Yrd Mat Sub Robot Analysis Total . | . . . Derelict Logs Recovered . | . . . Drone Launches . | . . . Drone Recoveries . | . . . Exploration | -11 -10 -10 ------------- Run | Yrd Mat Sub Turns Passed 2277 | 50 1062 1165 Spaces Moved 1298 | 39 638 621 Core 2 | 2 . . Treads 638 | . 339 299 Legs . | . . . Wheels 658 | 37 299 322 Hover . | . . . Flight . | . . . Fastest Speed 50 | 50 100 120 Average Speed 136 | 97 131 144 Slowest Speed 240 | 100 160 240 Overloaded Moves . | . . . Propulsion Burnouts . | . . . Robots Hopped . | . . . Cave-ins Triggered . | . . . Exploration Rate (%) 47 | 4 97 40 Regions Visited 2 Branch Regions 1 Pre-discovered Areas 1 | . . 1 Known Exits Taken . | . . . Unknown Exits Taken 2 | 1 1 . Scrap Searched 7 | . . 7 Spaces Dug . | . . . Terrain Destroyed 39 | . 20 19 Melee . | . . . Projectile 1 | . . 1 AOE 38 | . 20 18 Terrain Rammed . | . . . Walls Destroyed . | . . . Machines Disabled . | . . . Actions | -11 -10 -10 --------- Run | Yrd Mat Sub Total 1659 | 48 773 838 Wait 172 | . 48 124 Move 1296 | 38 637 621 Hop . | . . . Pick Up 31 | 4 15 12 Fast Attach 19 | 6 3 10 Attach 4 | . 1 3 Detach 1 | . . 1 Swap 10 | . 6 4 Drop 27 | . 7 20 Fire 99 | . 56 43 Melee . | . . . Ram . | . . . Kick . | . . . Crush . | . . . Escape Stasis . | . . . Rewire . | . . . Trap . | . . . Miscellaneous . | . . . Route ------- -11/Scrapyard -10/Materials (discovered 5 exits: [*Mat x3] / [*Min] / *Sub) -10/Subcaves (discovered 1 exit: [*Mat]) History --------- Turn | Location | Event 20 | -11/Scrapyard | Discovered new exit (range 15) 51 | -11/Scrapyard | Entered Materials 226 | -10/Materials | Discovered new exit (range 16) 313 | -10/Materials | Build established: Mutant 414 | -10/Materials | Discovered new exit (range 13) 572 | -10/Materials | Discovered new exit (range 6) 637 | -10/Materials | Discovered new exit (range 11) 914 | -10/Materials | Core integrity fell below 50% 1103 | -10/Materials | Discovered new exit (range 7) 1113 | -10/Materials | Entered Subcaves 1198 | -10/Subcaves | A swath of the cavern ceiling suddenly collapsed 1243 | -10/Subcaves | Learned location of Zion (-6) 1243 | -10/Subcaves | Met a Zionite searching for "candidates" 1612 | -10/Subcaves | Core integrity fell below 20% 1628 | -10/Subcaves | Shifting Twisted Machinery released Barrage Gun 1635 | -10/Subcaves | Shifting Twisted Machinery released Mak. Kinetic Plating 1695 | -10/Subcaves | Disturbed a concealed Subdweller 1954 | -10/Subcaves | Shifting Twisted Machinery released Sub. Beam Cannon 1987 | -10/Subcaves | Shifting Twisted Machinery released Sub. Beam Cannon 2044 | -10/Subcaves | Discovered new exit (range 14) 2209 | -10/Subcaves | Visited 4L-MR0's lab 2221 | -10/Subcaves | Found Botcube 2239 | -10/Subcaves | Found Power Bank 2240 | -10/Subcaves | Attached Power Bank, gained temporary slots: Power x3 2278 | -10/Subcaves | Destroyed by US-ZLL(R) with Subdweller Shrapnel Launcher Last Messages --------------- Flightbrick Gun Armor Power Bank Rainbow Chip VL-GR5's Exoskeleton "Deathgrip" Powered Cannon 02221_ Dropped Wheel. 02221_ Acquired Botcube. 02222_ Acquired 4 matter. 02234_ Testing Chamber breached. 02238_ Dropped Mak. Kinetic Plating. 02239_ Acquired Power Bank. 02240_ Core temporarily expanded with Power slot. 02242_ Dropped Machine Analyzer. 02242_ Acquired Mak. Kinetic Plating. 02244_ Dropped Grenade Launcher. 02245_ Acquired Machine Analyzer. 02254_ Dropped Sub. Monowheel. 02255_ Acquired Wheel. 02258_ Acquired 10 matter. Map ----- +----------------------------------------------------+ | ^#???????????????????????????????# # #### # | | ##???????????????????????? ## ## #? ### | | ##????????????????????????? ## #?##?# | | ?????????????????????????????# ## #???## | | ?????????????????????????????## ##### | | ??????????????????????????????## ## | | ???????????????????????????????## | | ????????????????????????????????# ### " | | ????????????????????????????????##???## [ "## | | ??????????????????????????????????????##### "##? | | ??????????????????????????????????????????# ""##?? | | ??????????????????????????????????????????## ##?? | | ???????????????????????????????????????????# #?? | | ???????????????????????????????????????????# #?? | | ???????????????????????????????????????????# ### | | ???????????????????#############???????????# # | | ???????????????????# "#"""""" "#???????????## = | | ???????????????????# ] "X" * "#????????????# | | ???????????????????### =|#####??????????# | | ?????????????????????# + "#??????????## | | ?????????????????????########## <#???????????## | | ??????????????????#$###????#### <#???????????## | | ??????????????????# <#####"%%["#???????????# | | ???????????????????# #[ ] "#??????????## | | ??????????????????????## & "##????????# # | | ??????????????????????#<*@##"""##?????????# | | ????????????????????###< &R#######???????# ## | | ??????????????????### < = ### #???????## # # | | ??????????????????# #####??? ### | | ??????????????????# ## #??# | | ?????????????????## ### ## ???## | | ?????????????????# ### # #?????# | | ?????????????????# ## # ????## | | ?????????????????# ??????# | | ?????????????????# !%! #### ???????# | | ?????????????????# "" ## # # # ????????## | | ?????????????????# ####### " #????###??## | | ?????????????????# "#?????# # ## ##???## ### | | ?????????????????# "#?????# ###?" ####?# | | ???????????????? "????## ##??? ## ## | | ??????????????? #???##"" "#??# # ## | | ??????????????# ###???# """ ###?# ##?## | | ??????????????## #??????#""""" "##???# #?## | | ???????????????## ???????#"""""" #??## #?# | | ???????????????? ???????# """""" ##?# #### | | ???????????????? ???????## "" ### # # | | ???????????????? ????????#"##" ### ## | | ?????????????????#???????????#"""" #? | | ?????????????????????????????# """ ## | | ?????????????????????????????#""""" # | +----------------------------------------------------+ Best States ------------- Heat Dissipation 35 Energy Generation 14 Energy Capacity 250 Matter Stores 300 Matter Capacity 300 Sight Range 16 Terrain Scan Range 14 Terrain Scan Density 10 Armor Coverage 100 Resistance: KI 10 Evasion (%) 40 Recoil Reduction 2 Item Schematics ----------------- None Robot Schematics ------------------ None Fabricated ------------ Nothing Alien Tech Used ----------------- None Achievements -------------- None Challenges ------------ None Game ------ Seed AntigravNodeMediator Manual? 0 Play Time 00:11:51 Cumulative 1320.8 hours Start 2023.12.22 @ 17:09:53 End 2023.12.22 @ 17:21:09 Sessions 1 Manual Loads 0 Difficulty Rogue Special Mode None Game No. 962 Rogue 922 Adventurer 40 Explorer 0 Win Type - Total 161 Types 77/7/52/2/1/4/15/2/1 Lore% 93 Gallery% 96 Achievement% 86 Wizard Run 0 Options --------- ASCII 0 Keyboard 0 Movement Numpad Keybinds 0 Fullscreen 0 Font 20/Terminus Map View 76x50 Zoom Use 0% Tactical HUD 1 Map Filters NONE Filters NONE Steam 1 RUN: ab8c7d48-d0cd-4c45-be63-c2bc7ab06391